fUST/lending_fUST_20240815
["ID","MTS","AMOUNT","RATE_DAILY","PERIOD"]
[334976378,1723707041129,-697.51,0.00013698,2]
[334976379,1723707041139,-500.0,0.00013698,2]
[334976380,1723707041149,-500.0,0.00013698,2]
[334976381,1723707041159,-500.0,0.00013698,2]
[334976382,1723707041168,-500.0,0.00013698,2]
[334976383,1723707041178,-500.0,0.00013698,2]
[334976384,1723707041189,-500.0,0.00013698,2]
[334976385,1723707041200,-505.27,0.00013698,2]
[334976386,1723707041210,-500.0,0.00013698,2]
[334976387,1723707041220,-500.0,0.00013698,2]
[334976388,1723707041231,-500.0,0.00013698,2]
[334976389,1723707041241,-500.0,0.00013698,2]
[334976390,1723707041251,-404.52251278,0.00013698,2]
[334976391,1723707041262,-505.02,0.00013698,2]
[334976392,1723707041272,-699.68,0.00013698,2]
[334976393,1723707041282,-500.0,0.00013698,2]
[334976394,1723707041292,-500.0,0.00013698,2]
[334976395,1723707041302,-500.0,0.00013698,2]
[334976396,1723707041312,-500.0,0.00013698,2]
[334976397,1723707041322,-500.0,0.00013698,2]
[334976398,1723707041332,-500.0,0.00013698,2]
[334976399,1723707041346,-500.0,0.00013698,2]
[334976400,1723707041363,-500.0,0.00013698,2]
[334976401,1723707041372,-500.0,0.00013698,2]
[334976402,1723707041382,-500.0,0.00013698,2]
[334976403,1723707041393,-500.0,0.00013698,2]
[334976404,1723707041404,-670.19,0.00013698,2]
[334976405,1723707041415,-500.0,0.00013698,2]
[334976406,1723707041425,-500.0,0.00013698,2]
[334976407,1723707041435,-500.0,0.00013698,2]
[334976408,1723707041448,-480.25414201,0.00013698,2]
[334976409,1723707041457,-500.0,0.00013698,2]
[334976410,1723707041467,-500.0,0.00013698,2]
[334976411,1723707041477,-668.97,0.00013698,2]
[334976412,1723707041487,-500.0,0.00013698,2]
[334976413,1723707041496,-500.0,0.00013698,2]
[334976414,1723707041505,-500.0,0.00013698,2]
[334976415,1723707041515,-1173.14,0.00013698,2]
[334976416,1723707041526,-500.0,0.00013698,2]
[334976417,1723707041535,-500.0,0.00013698,2]
[334976418,1723707041544,-500.0,0.00013698,2]
[334976419,1723707041554,-502.02432684,0.00013698,2]
[334976420,1723707041564,-500.0,0.00013698,2]
[334976421,1723707041573,-500.87,0.00013698,2]
[334976422,1723707041585,-483.53394423,0.00013698,2]
[334976423,1723707041594,-502.79,0.00013698,2]
[334976424,1723707041607,-582.39,0.00013698,2]
[334976425,1723707041616,-500.0,0.00013698,2]
[334976426,1723707041625,-363.28986497,0.00013698,2]
[334976427,1723707041634,-676.81,0.00013698,2]
[334976428,1723707041644,-504.53771264,0.00013698,2]
[334976429,1723707041653,-616.24,0.00013698,2]
[334976430,1723707041662,-502.34607036,0.00013698,2]
[334976431,1723707041672,-693.37,0.00013698,2]
[334976432,1723707041681,-500.0,0.00013698,2]
[334976433,1723707041691,-500.0,0.00013698,2]
[334976434,1723707041703,-500.0,0.00013698,2]
[334976435,1723707041712,-500.0,0.00013698,2]
[334976436,1723707041722,-500.0,0.00013698,2]
[334976437,1723707041731,-500.0,0.00013698,2]
[334976438,1723707041741,-500.0,0.00013698,2]
[334976439,1723707041750,-500.0,0.00013698,2]
[334976440,1723707041760,-500.0,0.00013698,2]
[334976441,1723707041770,-500.0,0.00013698,2]
[334976442,1723707041779,-500.0,0.00013698,2]
[334976443,1723707041789,-500.0,0.00013698,2]
[334976444,1723707041798,-500.0,0.00013698,2]
[334976445,1723707041808,-500.0,0.00013698,2]
[334976446,1723707041817,-500.0,0.00013698,2]
[334976447,1723707041827,-500.0,0.00013698,2]
[334976448,1723707041836,-683.44,0.00013698,2]
[334976449,1723707041846,-501.03023954,0.00013698,2]
[334976450,1723707041858,-503.88829484,0.00013698,2]
[334976451,1723707041867,-500.0,0.00013698,2]
[334976452,1723707041877,-500.0,0.00013698,2]
[334976453,1723707041887,-500.0,0.00013698,2]
[334976454,1723707041897,-500.0,0.00013698,2]
[334976455,1723707041907,-500.0,0.00013698,2]
[334976456,1723707041916,-500.0,0.00013698,2]
[334976457,1723707041925,-500.0,0.00013698,2]
[334976458,1723707041935,-502.40507291,0.00013698,2]
[334976459,1723707041944,-500.0,0.00013698,2]
[334976460,1723707041955,-500.0,0.00013698,2]
[334976461,1723707041965,-500.0,0.00013698,2]
[334976462,1723707041974,-500.0,0.00013698,2]
[334976463,1723707041984,-500.0,0.00013698,2]
[334976464,1723707041994,-500.0,0.00013698,2]
[334976465,1723707042003,-500.0,0.00013698,2]
[334976466,1723707042013,-500.0,0.00013698,2]
[334976467,1723707042125,-500.0,0.00013698,2]
[334976468,1723707042160,-500.0,0.00013698,2]
[334976469,1723707042169,-500.0,0.00013698,2]
[334976470,1723707042179,-500.0,0.00013698,2]
[334976471,1723707042189,-501.35783134,0.00013698,2]
[334976472,1723707042199,-500.0,0.00013698,2]
[334976473,1723707042209,-500.0,0.00013698,2]
[334976474,1723707042219,-792.17,0.00013698,2]
[334976475,1723707042228,-485.79420532,0.00013698,2]
[334976476,1723707042239,-500.0,0.00013698,2]
[334976477,1723707042250,-382.66787894,0.00013698,2]
[334976480,1723707043399,-117.33212106,0.00013698,2]
[334976481,1723707043408,-500.0,0.00013698,2]
[334976482,1723707043418,-500.0,0.00013698,2]
[334976483,1723707043428,-527.46,0.00013698,2]
[334976485,1723707043438,-500.0,0.00013698,2]
[334976486,1723707043447,-497.49337936,0.00013698,2]
[334976487,1723707043457,-500.0,0.00013698,2]
[334976488,1723707043466,-450.66361267,0.00013698,2]
[334976489,1723707043475,-456.17088691,0.00013698,2]
[334976529,1723707044640,-924.14581226,0.00013598,2]
[334976530,1723707044651,-924.14581224,0.00013667,2]
[334976532,1723707044660,-832.32200091,0.00013698,2]
[334976534,1723707044670,-45.254404,0.00013698,2]
[334976536,1723707044680,-504.93591705,0.00013698,2]
[334976538,1723707044689,-501.94850563,0.00013698,2]
[334976540,1723707044704,-500.0,0.00013698,2]
[334976543,1723707044720,-500.0,0.00013698,2]
[334976546,1723707044736,-500.0,0.00013698,2]
[334976548,1723707044750,-500.0,0.00013698,2]
[334976551,1723707044765,-500.56064691,0.00013698,2]
[334976553,1723707044779,-500.0,0.00013698,2]
[334976556,1723707044794,-501.85706842,0.00013698,2]
[334976558,1723707044809,-500.0,0.00013698,2]
[334976561,1723707044822,-511.58903841,0.00013698,2]
[334976563,1723707044836,-500.0,0.00013698,2]
[334976565,1723707044849,-651.81,0.00013698,2]
[334976568,1723707044866,-505.12937805,0.00013698,2]
[334976570,1723707044879,-655.92,0.00013698,2]
[334976572,1723707044892,-503.06586129,0.00013698,2]
[334976575,1723707044907,-500.0,0.00013698,2]
[334976577,1723707044920,-500.0,0.00013698,2]
[334976579,1723707044931,-713.1,0.00013698,2]
[334976582,1723707044943,-500.0,0.00013698,2]
[334976584,1723707044955,-500.0,0.00013698,2]
[334976586,1723707044968,-500.0,0.00013698,2]
[334976589,1723707044982,-169.99372437,0.00013698,2]
[334976591,1723707044995,-500.0,0.00013698,2]
[334976594,1723707045011,-500.0,0.00013698,2]
[334976596,1723707045025,-743.15,0.00013698,2]
[334976598,1723707045042,-500.0,0.00013698,2]
[334976600,1723707045053,-500.0,0.00013698,2]
[334976603,1723707045064,-500.0,0.00013698,2]
[334976605,1723707045075,-500.99520193,0.00013698,2]
[334976607,1723707045089,-500.0,0.00013698,2]
[334976609,1723707045103,-500.0,0.00013698,2]
[334976612,1723707045120,-750.57,0.00013698,2]
[334976614,1723707045134,-500.0,0.00013698,2]
[334976616,1723707045146,-500.0,0.00013698,2]
[334976619,1723707045160,-500.0,0.00013698,2]
[334976621,1723707045172,-500.0,0.00013698,2]
[334976623,1723707045184,-500.0,0.00013698,2]
[334976625,1723707045197,-500.0,0.00013698,2]
[334976628,1723707045211,-500.0,0.00013698,2]
[334976630,1723707045224,-590.54,0.00013698,2]
[334976632,1723707045236,-691.72,0.00013698,2]
[334976634,1723707045248,-537.94641689,0.00013698,2]
[334976637,1723707045259,-500.0,0.00013698,2]
[334976639,1723707045271,-500.0,0.00013698,2]
[334976641,1723707045284,-500.0,0.00013698,2]
[334976643,1723707045296,-500.0,0.00013698,2]
[334976646,1723707045308,-500.0,0.00013698,2]
[334976648,1723707045320,-500.0,0.00013698,2]
[334976650,1723707045332,-500.0,0.00013698,2]
[334976652,1723707045344,-500.0,0.00013698,2]
[334976655,1723707045361,-567.84802098,0.00013698,2]
[334976657,1723707045375,-750.78,0.00013698,2]
[334976659,1723707045387,-878.0,0.00013698,2]
[334976661,1723707045398,-500.0,0.00013698,2]
[334976663,1723707045411,-770.96,0.00013698,2]
[334976666,1723707045423,-706.89,0.00013698,2]
[334976668,1723707045435,-500.0,0.00013698,2]
[334976670,1723707045448,-500.0,0.00013698,2]
[334976673,1723707045460,-500.0,0.00013698,2]
[334976674,1723707045472,-500.0,0.00013698,2]
[334976675,1723707045485,-500.0,0.00013698,2]
[334976676,1723707045497,-500.0,0.00013698,2]
[334976677,1723707045508,-651.78,0.00013698,2]
[334976678,1723707045520,-500.0,0.00013698,2]
[334976679,1723707045532,-500.0,0.00013698,2]
[334976680,1723707045544,-806.23,0.00013698,2]
[334976681,1723707045556,-500.0,0.00013698,2]
[334976682,1723707045567,-195.3863153,0.00013698,2]
[334976683,1723707045579,-500.0,0.00013698,2]
[334976684,1723707045591,-500.0,0.00013698,2]
[334976685,1723707045603,-500.0,0.00013698,2]
[334976686,1723707045624,-500.0,0.00013698,2]
[334976689,1723707045636,-594.18,0.00013698,2]
[334976691,1723707045647,-732.24,0.00013698,2]
[334976693,1723707045660,-879.05,0.00013698,2]
[334976696,1723707045672,-500.0,0.00013698,2]
[334976698,1723707045683,-500.0,0.00013698,2]
[334976700,1723707045695,-500.0,0.00013698,2]
[334976701,1723707045706,-500.0,0.00013698,2]
[334976702,1723707045719,-500.0,0.00013698,2]
[334976703,1723707045731,-729.56,0.00013698,2]
[334976704,1723707045744,-532.42,0.00013698,2]
[334976705,1723707045755,-733.26,0.00013698,2]
[334976706,1723707045767,-500.0,0.00013698,2]
[334976707,1723707045779,-795.58,0.00013698,2]
[334976708,1723707045791,-500.0,0.00013698,2]
[334976709,1723707045802,-551.58724355,0.00013698,2]
[334976711,1723707045814,-769.97,0.00013698,2]
[334976713,1723707045826,-533.00285541,0.00013698,2]
[334976715,1723707045837,-588.81,0.00013698,2]
[334976717,1723707045849,-500.0,0.00013698,2]
[334976718,1723707045865,-500.0,0.00013698,2]
[334976719,1723707045877,-562.62,0.00013698,2]
[334976720,1723707045889,-1046.8,0.00013698,2]
[334976721,1723707045901,-500.0,0.00013698,2]
[334976722,1723707045914,-500.0,0.00013698,2]
[334976723,1723707045926,-500.0,0.00013698,2]
[334976724,1723707045937,-559.35,0.00013698,2]
[334976725,1723707045949,-606.4,0.00013698,2]
[334976726,1723707045962,-500.0,0.00013698,2]
[334976727,1723707045975,-500.0,0.00013698,2]
[334976728,1723707045987,-500.73556264,0.00013698,2]
[334976729,1723707045999,-558.59,0.00013698,2]
[334976730,1723707046010,-500.0,0.00013698,2]
[334976731,1723707046021,-500.0,0.00013698,2]
[334976732,1723707046034,-500.0,0.00013698,2]
[334976733,1723707046044,-860.31,0.00013698,2]
[334976736,1723707046059,-500.0,0.00013698,2]
[334976739,1723707046071,-840.66,0.00013698,2]
[334976742,1723707046082,-500.0,0.00013698,2]
[334976746,1723707046095,-550.03,0.00013698,2]
[334976747,1723707046110,-501.67140974,0.00013698,2]
[334976748,1723707046121,-500.0,0.00013698,2]
[334976749,1723707046134,-854.19,0.00013698,2]
[334976750,1723707046146,-500.0,0.00013698,2]
[334976751,1723707046158,-500.0,0.00013698,2]
[334976753,1723707046170,-500.0,0.00013698,2]
[334976755,1723707046179,-191.15948822,0.00013698,2]
[334976757,1723707046189,-500.0,0.00013698,2]
[334976770,1723707046386,-502.15187136,0.00013698,2]
[334976775,1723707046413,-1220.07,0.00013698,2]
[334976777,1723707046426,-578.87,0.00013698,2]
[334976779,1723707046435,-500.0,0.00013698,2]
[334976781,1723707046445,-151.0,0.00013698,2]
[334976783,1723707046456,-151.0,0.00013698,2]
[334976785,1723707046466,-259.34775,0.00013698,2]
[334976787,1723707046475,-1006.57,0.00013698,2]
[334976789,1723707046484,-635.76,0.00013698,2]
[334976791,1723707046495,-500.0,0.00013698,2]
[334976793,1723707046505,-437.24529235,0.00013698,2]
[334976795,1723707046514,-500.0,0.00013698,2]
[334976797,1723707046524,-500.0,0.00013698,2]
[334976799,1723707046533,-500.0,0.00013698,2]
[334976801,1723707046543,-500.0,0.00013698,2]
[334976803,1723707046552,-507.41606096,0.00013698,2]
[334976804,1723707046561,-500.0,0.00013698,2]
[334976805,1723707046571,-500.0,0.00013698,2]
[334976806,1723707046581,-500.0,0.00013698,2]
[334976807,1723707046590,-500.0,0.00013698,2]
[334976808,1723707046602,-500.0,0.00013698,2]
[334976809,1723707046616,-582.53299857,0.00013698,2]
[334976810,1723707046626,-500.0,0.00013698,2]
[334976811,1723707046635,-500.0,0.00013698,2]
[334976812,1723707046645,-746.96,0.00013698,2]
[334976813,1723707046654,-151.0,0.00013698,2]
[334976814,1723707046663,-604.38,0.00013698,2]
[334976815,1723707046672,-500.0,0.00013698,2]
[334976816,1723707046682,-642.0220189,0.00013698,2]
[334976817,1723707046691,-500.0,0.00013698,2]
[334976818,1723707046701,-500.0,0.00013698,2]
[334976819,1723707046710,-500.0,0.00013698,2]
[334976820,1723707046720,-501.81175287,0.00013698,2]
[334976821,1723707046729,-623.5,0.00013698,2]
[334976822,1723707046738,-500.0,0.00013698,2]
[334976823,1723707046748,-502.33715123,0.00013698,2]
[334976824,1723707046757,-509.89475415,0.00013698,2]
[334976826,1723707046766,-397.10456181,0.00013698,2]
[334976828,1723707046776,-500.0,0.00013698,2]
[334976830,1723707046785,-749.79,0.00013698,2]
[334976831,1723707046795,-500.0,0.00013698,2]
[334976833,1723707046804,-439.49232361,0.00013698,2]
[334976835,1723707046814,-500.0,0.00013698,2]
[334976836,1723707046823,-500.0,0.00013698,2]
[334976837,1723707046832,-500.0,0.00013698,2]
[334976838,1723707046842,-500.0,0.00013698,2]
[334976839,1723707046851,-503.32259853,0.00013698,2]
[334976840,1723707046864,-500.0,0.00013698,2]
[334976841,1723707046874,-509.26,0.00013698,2]
[334976842,1723707046884,-500.0,0.00013698,2]
[334976843,1723707046894,-500.0,0.00013698,2]
[334976844,1723707046903,-741.98,0.00013698,2]
[334976845,1723707046912,-821.7,0.00013698,2]
[334976846,1723707046922,-500.0,0.00013698,2]
[334976847,1723707046932,-151.0,0.00013698,2]
[334976848,1723707046941,-151.0,0.00013698,2]
[334976849,1723707046951,-500.0,0.00013698,2]
[334976850,1723707046961,-151.0,0.00013698,2]
[334976851,1723707046971,-500.0,0.00013698,2]
[334976852,1723707046980,-294.820826,0.00013698,2]
[334976853,1723707046990,-500.0,0.00013698,2]
[334976854,1723707047000,-503.50609522,0.00013698,2]
[334976855,1723707047010,-500.0,0.00013698,2]
[334976856,1723707047019,-1574.89,0.00013698,2]
[334976857,1723707047029,-285.13645773,0.00013698,2]
[334976858,1723707047040,-500.0,0.00013698,2]
[334976859,1723707047050,-151.0,0.00013698,2]
[334976860,1723707047062,-1121.19,0.00013698,2]
[334976861,1723707047072,-151.0,0.00013698,2]
[334976862,1723707047082,-500.0,0.00013698,2]
[334976863,1723707047091,-500.0,0.00013698,2]
[334976864,1723707047102,-1278.73,0.00013698,2]
[334976865,1723707047115,-687.69,0.00013698,2]
[334976866,1723707047126,-508.06331743,0.00013698,2]
[334976867,1723707047136,-500.0,0.00013698,2]
[334976868,1723707047146,-733.17,0.00013698,2]
[334976869,1723707047156,-906.432906,0.00013698,2]
[334976870,1723707047166,-906.432906,0.00013698,2]
[334976871,1723707047175,-906.432906,0.00013698,2]
[334976872,1723707047186,-906.432906,0.00013698,2]
[334976873,1723707047196,-906.432906,0.00013698,2]
[334976874,1723707047205,-906.432906,0.00013698,2]
[334976875,1723707047215,-906.432906,0.00013698,2]
[334976876,1723707047225,-500.0,0.00013698,2]
[334976877,1723707047236,-906.432906,0.00013698,2]
[334976878,1723707047247,-906.432906,0.00013698,2]
[334976879,1723707047257,-906.432906,0.00013698,2]
[334976880,1723707047268,-906.432906,0.00013698,2]
[334976881,1723707047279,-906.432906,0.00013698,2]
[334976882,1723707047290,-607.3,0.00013698,2]
[334976883,1723707047300,-906.432906,0.00013698,2]
[334976884,1723707047310,-906.432906,0.00013698,2]
[334976885,1723707047320,-906.432906,0.00013698,2]
[334976886,1723707047331,-906.432906,0.00013698,2]
[334976887,1723707047342,-906.432906,0.00013698,2]
[334976888,1723707047353,-151.0,0.00013698,2]
[334976889,1723707047375,-906.432906,0.00013698,2]
[334976890,1723707047385,-151.0,0.00013698,2]
[334976891,1723707047396,-906.432906,0.00013698,2]
[334976892,1723707047406,-151.0,0.00013698,2]
[334976893,1723707047417,-906.432903,0.00013698,2]
[334976894,1723707047427,-151.0,0.00013698,2]
[334976895,1723707047438,-151.0,0.00013698,2]
[334976896,1723707047448,-543.82,0.00013698,2]
[334976897,1723707047458,-151.0,0.00013698,2]
[334976898,1723707047468,-500.0,0.00013698,2]
[334976899,1723707047478,-500.0,0.00013698,2]
[334976900,1723707047488,-824.98,0.00013698,2]
[334976901,1723707047499,-500.0,0.00013698,2]
[334976902,1723707047510,-522.56,0.00013698,2]
[334976903,1723707047519,-500.0,0.00013698,2]
[334976904,1723707047528,-500.0,0.00013698,2]
[334976905,1723707047538,-1269.67,0.00013698,2]
[334976906,1723707047549,-712.47,0.00013698,2]
[334976907,1723707047559,-1268.46,0.00013698,2]
[334976908,1723707047568,-151.0,0.00013698,2]
[334976909,1723707047578,-151.0,0.00013698,2]
[334976910,1723707047589,-151.0,0.00013698,2]
[334976911,1723707047598,-500.0,0.00013698,2]
[334976912,1723707047614,-151.0,0.00013698,2]
[334976913,1723707047624,-500.0,0.00013698,2]
[334976914,1723707047634,-151.0,0.00013698,2]
[334976915,1723707047644,-184.729201,0.00013698,2]
[334976916,1723707047653,-151.0,0.00013698,2]
[334976917,1723707047663,-184.729201,0.00013698,2]
[334976918,1723707047672,-1647.18,0.00013698,2]
[334976919,1723707047682,-595.31,0.00013698,2]
[334976920,1723707047692,-696.43,0.00013698,2]
[334976921,1723707047702,-184.729201,0.00013698,2]
[334976922,1723707047713,-184.729201,0.00013698,2]
[334976923,1723707047723,-184.729201,0.00013698,2]
[334976924,1723707047732,-184.729201,0.00013698,2]
[334976925,1723707047743,-184.729201,0.00013698,2]
[334976926,1723707047753,-184.729201,0.00013698,2]
[334976927,1723707047763,-184.729201,0.00013698,2]
[334976928,1723707047773,-184.729201,0.00013698,2]
[334976929,1723707047783,-184.729201,0.00013698,2]
[334976930,1723707047793,-184.729201,0.00013698,2]
[334976931,1723707047802,-184.729201,0.00013698,2]
[334976932,1723707047811,-184.729201,0.00013698,2]
[334976933,1723707047821,-184.729201,0.00013698,2]
[334976934,1723707047830,-184.729201,0.00013698,2]
[334976935,1723707047840,-184.729201,0.00013698,2]
[334976936,1723707047849,-184.729201,0.00013698,2]
[334976937,1723707047866,-184.729201,0.00013698,2]
[334976938,1723707047875,-184.72921,0.00013698,2]
[334976939,1723707047884,-510.82,0.00013698,2]
[334976940,1723707047894,-500.0,0.00013698,2]
[334976941,1723707047903,-242.89293473,0.00013698,2]
[334976942,1723707047913,-564.19,0.00013698,2]
[334976943,1723707047922,-735.71,0.00013698,2]
[334976944,1723707047932,-631.76088597,0.00013698,2]
[334976945,1723707047941,-500.0,0.00013698,2]
[334976946,1723707047951,-500.0,0.00013698,2]
[334976947,1723707047960,-500.0,0.00013698,2]
[334976948,1723707047969,-559.15,0.00013698,2]
[334976949,1723707047979,-770.12,0.00013698,2]
[334976950,1723707047989,-500.0,0.00013698,2]
[334976951,1723707048000,-1060.98,0.00013698,2]
[334976952,1723707048011,-330.32908003,0.00013698,2]
[334976953,1723707048020,-500.0,0.00013698,2]
[334976954,1723707048029,-151.0,0.00013698,2]
[334976955,1723707048044,-151.0,0.00013698,2]
[334976956,1723707048053,-1648.15,0.00013698,2]
[334976957,1723707048063,-1639.89,0.00013698,2]
[334976958,1723707048075,-500.0,0.00013698,2]
[334976959,1723707048086,-746.22,0.00013698,2]
[334976960,1723707048095,-500.0,0.00013698,2]
[334976961,1723707048108,-277.27363706,0.00013698,2]
[334976962,1723707048121,-502.47735059,0.00013698,2]
[334976963,1723707048131,-698.24,0.00013698,2]
[334976964,1723707048140,-2144.92,0.00013698,2]
[334976965,1723707048150,-500.0,0.00013698,2]
[334976966,1723707048160,-500.0,0.00013698,2]
[334976967,1723707048169,-1807.81,0.00013698,2]
[334976968,1723707048179,-740.30717,0.00013698,2]
[334976969,1723707048189,-500.0,0.00013698,2]
[334976970,1723707048198,-500.0,0.00013698,2]
[334976971,1723707048208,-2607.11,0.00013698,2]
[334976972,1723707048217,-500.0,0.00013698,2]
[334976973,1723707048228,-500.0,0.00013698,2]
[334976974,1723707048237,-500.0,0.00013698,2]
[334976975,1723707048247,-1893.74,0.00013698,2]
[334976976,1723707048257,-249.02490568,0.00013698,2]
[334976977,1723707048266,-500.0,0.00013698,2]
[334976978,1723707048275,-260.34410894,0.00013698,2]
[334976979,1723707048285,-500.0,0.00013698,2]
[334976980,1723707048295,-500.0,0.00013698,2]
[334976981,1723707048305,-7332.05,0.00013698,2]
[334976982,1723707048315,-500.0,0.00013698,2]
[334976983,1723707048324,-944.01,0.00013698,2]
[334976984,1723707048334,-500.0,0.00013698,2]
[334976985,1723707048344,-501.15904355,0.00013698,2]
[334976986,1723707048354,-500.0,0.00013698,2]
[334976987,1723707048369,-1990.45,0.00013698,2]
[334976988,1723707048379,-213.865371,0.00013698,2]
[334976989,1723707048390,-912.040721,0.00013698,2]
[334976990,1723707048399,-213.865371,0.00013698,2]
[334976991,1723707048409,-912.040721,0.00013698,2]
[334976992,1723707048419,-213.865371,0.00013698,2]
[334976993,1723707048430,-912.040721,0.00013698,2]
[334976994,1723707048440,-213.865371,0.00013698,2]
[334976995,1723707048450,-500.0,0.00013698,2]
[334976996,1723707048459,-912.040721,0.00013698,2]
[334976997,1723707048469,-213.865371,0.00013698,2]
[334976998,1723707048479,-912.040721,0.00013698,2]
[334976999,1723707048489,-213.865371,0.00013698,2]
[334977000,1723707048499,-1885.33,0.00013698,2]
[334977001,1723707048509,-912.040721,0.00013698,2]
[334977002,1723707048519,-213.865371,0.00013698,2]
[334977003,1723707048529,-213.865371,0.00013698,2]
[334977004,1723707048539,-912.040721,0.00013698,2]
[334977005,1723707048548,-912.040721,0.00013698,2]
[334977006,1723707048558,-213.865371,0.00013698,2]
[334977007,1723707048568,-912.040721,0.00013698,2]
[334977008,1723707048577,-213.865371,0.00013698,2]
[334977009,1723707048587,-213.865371,0.00013698,2]
[334977010,1723707048597,-912.040721,0.00013698,2]
[334977011,1723707048611,-500.0,0.00013698,2]
[334977012,1723707048621,-213.865371,0.00013698,2]
[334977013,1723707048631,-912.040721,0.00013698,2]
[334977014,1723707048641,-213.865371,0.00013698,2]
[334977015,1723707048650,-912.040721,0.00013698,2]
[334977016,1723707048660,-729.02,0.00013698,2]
[334977017,1723707048669,-912.040721,0.00013698,2]
[334977018,1723707048679,-1135.771208,0.00013698,2]
[334977019,1723707048690,-213.865371,0.00013698,2]
[334977020,1723707048699,-912.040721,0.00013698,2]
[334977021,1723707048709,-500.0,0.00013698,2]
[334977022,1723707048718,-500.0,0.00013698,2]
[334977023,1723707048727,-213.865371,0.00013698,2]
[334977024,1723707048738,-912.040721,0.00013698,2]
[334977025,1723707048748,-213.865371,0.00013698,2]
[334977026,1723707048758,-1135.771208,0.00013698,2]
[334977027,1723707048767,-912.040721,0.00013698,2]
[334977028,1723707048777,-213.865371,0.00013698,2]
[334977029,1723707048786,-1135.771208,0.00013698,2]
[334977030,1723707048796,-500.0,0.00013698,2]
[334977031,1723707048807,-912.040721,0.00013698,2]
[334977032,1723707048818,-213.865371,0.00013698,2]
[334977033,1723707048827,-1135.771208,0.00013698,2]
[334977034,1723707048838,-912.040721,0.00013698,2]
[334977035,1723707048848,-213.865371,0.00013698,2]
[334977036,1723707048862,-1135.771208,0.00013698,2]
[334977037,1723707048873,-912.040721,0.00013698,2]
[334977038,1723707048883,-213.865368,0.00013698,2]
[334977039,1723707048892,-1135.771208,0.00013698,2]
[334977040,1723707048902,-1135.771208,0.00013698,2]
[334977041,1723707048912,-912.040727,0.00013698,2]
[334977042,1723707048923,-1135.771208,0.00013698,2]
[334977043,1723707048934,-1034.07,0.00013698,2]
[334977044,1723707048947,-1135.771208,0.00013698,2]
[334977045,1723707048956,-1135.771208,0.00013698,2]
[334977046,1723707048966,-1135.771208,0.00013698,2]
[334977047,1723707048976,-1135.771208,0.00013698,2]
[334977048,1723707048985,-1135.771208,0.00013698,2]
[334977049,1723707048994,-500.0,0.00013698,2]
[334977050,1723707049003,-1135.771208,0.00013698,2]
[334977051,1723707049014,-1135.771208,0.00013698,2]
[334977052,1723707049023,-1135.771208,0.00013698,2]
[334977053,1723707049035,-500.0,0.00013698,2]
[334977054,1723707049046,-1135.771208,0.00013698,2]
[334977055,1723707049058,-500.0,0.00013698,2]
[334977056,1723707049069,-1135.771208,0.00013698,2]
[334977057,1723707049081,-1135.771208,0.00013698,2]
[334977058,1723707049091,-1833.09,0.00013698,2]
[334977059,1723707049100,-1135.771199,0.00013698,2]